[Event "Titled Tuesday Blitz May 30 Early 2023"]
[White "Weishaeutel, Moritz"]
[Black "Dinu, Dumitru-Daniel"]
[WhiteFideId "12967300"]
[BlackFideId "1208403"]
[WhiteElo "2301"]
[BlackElo "2240"]
[Result "1-0"]
[Round "05"]
[TimeControl "180+2"]
[Date "2023.05.30"]
[WhiteClock "0:00:10"]
[BlackClock "0:00:00"]

1. e4 {[%clk 0:03:00]}  c5 {[%clk 0:02:59]} 2. d4 {[%clk 0:03:00]}  cxd4 {[%clk 0:02:57]} 3. c3 {[%clk 0:03:01]}  Nf6 {[%clk 0:02:58]} 4. e5 {[%clk 0:03:01]}  Nd5 {[%clk 0:02:58]} 5. Nf3 {[%clk 0:03:02]}  e6 {[%clk 0:02:56]} 6. cxd4 {[%clk 0:03:01]}  Nc6 {[%clk 0:02:55]} 7. Nc3 {[%clk 0:03:01]}  d6 {[%clk 0:02:52]} 8. Bd3 {[%clk 0:02:56]}  dxe5 {[%clk 0:02:49]} 9. dxe5 {[%clk 0:02:57]}  Nxc3 {[%clk 0:02:48]} 10. bxc3 {[%clk 0:02:57]}  Be7 {[%clk 0:02:46]} 11. O-O {[%clk 0:02:56]}  Qa5 {[%clk 0:02:29]} 12. Qe2 {[%clk 0:02:54]}  Bd7 {[%clk 0:02:27]} 13. Re1 {[%clk 0:02:48]}  O-O-O {[%clk 0:02:25]} 14. Bg5 {[%clk 0:02:38]}  Bxg5 {[%clk 0:02:22]} 15. Nxg5 {[%clk 0:02:39]}  Be8 {[%clk 0:02:20]} 16. Rab1 {[%clk 0:02:30]}  b6 {[%clk 0:02:17]} 17. Bb5 {[%clk 0:02:21]}  h6 {[%clk 0:01:39]} 18. Nxf7 {[%clk 0:01:34]}  Bxf7 {[%clk 0:01:34]} 19. Bxc6 {[%clk 0:01:34]}  Kb8 {[%clk 0:01:27]} 20. Bf3 {[%clk 0:01:32]}  Bg6 {[%clk 0:01:14]} 21. Be4 {[%clk 0:01:18]}  Bxe4 {[%clk 0:01:09]} 22. Qxe4 {[%clk 0:01:19]}  Qxc3 {[%clk 0:01:09]} 23. Rec1 {[%clk 0:01:19]}  Qd4 {[%clk 0:00:59]} 24. Qc6 {[%clk 0:01:18]}  Qd7 {[%clk 0:00:25]} 25. Qe4 {[%clk 0:01:04]}  Qd5 {[%clk 0:00:23]} 26. Qe3 {[%clk 0:01:02]}  Qd4 {[%clk 0:00:19]} 27. Qg3 {[%clk 0:00:59]}  g5 {[%clk 0:00:15]} 28. h3 {[%clk 0:00:57]}  Rhf8 {[%clk 0:00:14]} 29. Rc2 {[%clk 0:00:52]}  Rf4 {[%clk 0:00:11]} 30. Rbc1 {[%clk 0:00:50]}  Rdf8 {[%clk 0:00:10]} 31. a4 {[%clk 0:00:29]}  a5 {[%clk 0:00:09]} 32. Rb1 {[%clk 0:00:22]}  Kb7 {[%clk 0:00:08]} 33. Rbb2 {[%clk 0:00:20]}  Qxe5 {[%clk 0:00:05]} 34. Re2 {[%clk 0:00:14]}  Qc5 {[%clk 0:00:03]} 35. Qb3 {[%clk 0:00:10]}  Qc1+ {[%clk 0:00:02]} 36. Kh2 {[%clk 0:00:11]}  Qc7 {[%clk 0:00:02]} 37. g3 {[%clk 0:00:10]}  Rf3 {[%clk 0:00:00]} 38. Qxe6 {[%clk 0:00:10]} 1-0


[Site "https://www.chess.com"]

[Event "Titled Tuesday Blitz May 30 Early 2023"]
[White "Ryan, Joseph"]
[Black "Kubicka, Anna"]
[WhiteFideId "2500426"]
[BlackFideId "1152254"]
[WhiteElo "2425"]
[BlackElo "2144"]
[Result "1-0"]
[Round "05"]
[TimeControl "180+2"]
[Date "2023.05.30"]
[WhiteClock "0:02:00"]
[BlackClock "0:01:14"]

1. e4 {[%clk 0:03:00]}  c5 {[%clk 0:02:57]} 2. a3 {[%clk 0:02:59]}  g6 {[%clk 0:02:57]} 3. Nc3 {[%clk 0:02:57]}  Bg7 {[%clk 0:02:57]} 4. Bc4 {[%clk 0:02:56]}  e6 {[%clk 0:02:57]} 5. d3 {[%clk 0:02:53]}  Ne7 {[%clk 0:02:57]} 6. Ba2 {[%clk 0:02:53]}  O-O {[%clk 0:02:57]} 7. h4 {[%clk 0:02:53]}  d5 {[%clk 0:02:57]} 8. h5 {[%clk 0:02:52]}  b6 {[%clk 0:02:40]} 9. hxg6 {[%clk 0:02:46]}  hxg6 {[%clk 0:02:40]} 10. Nf3 {[%clk 0:02:41]}  Bb7 {[%clk 0:02:39]} 11. Bg5 {[%clk 0:02:40]}  dxe4 {[%clk 0:02:36]} 12. Nxe4 {[%clk 0:02:37]}  Bxe4 {[%clk 0:02:32]} 13. dxe4 {[%clk 0:02:37]}  Qxd1+ {[%clk 0:02:30]} 14. Rxd1 {[%clk 0:02:37]}  Nec6 {[%clk 0:02:30]} 15. c3 {[%clk 0:02:33]}  Ne5 {[%clk 0:02:23]} 16. Nxe5 {[%clk 0:02:32]}  Bxe5 {[%clk 0:02:24]} 17. f4 {[%clk 0:02:30]}  Bg7 {[%clk 0:02:23]} 18. e5 {[%clk 0:02:30]}  Nc6 {[%clk 0:02:22]} 19. Rd3 {[%clk 0:02:17]}  Rac8 {[%clk 0:02:03]} 20. Rdh3 {[%clk 0:02:08]}  Rfe8 {[%clk 0:01:43]} 21. Bf6 {[%clk 0:02:07]}  Kf8 {[%clk 0:01:15]} 22. Rh8+ {[%clk 0:02:01]}  Bxh8 {[%clk 0:01:14]} 23. Rxh8# {[%clk 0:02:00]} 1-0


[Site "https://www.chess.com"]

[Event "Titled Tuesday Blitz May 30 Early 2023"]
[White "Mogirzan, Matei-Valeriu"]
[Black "Berezin, Viktor"]
[WhiteFideId "1257455"]
[BlackFideId "14107872"]
[WhiteElo "1733"]
[BlackElo "2310"]
[Result "1-0"]
[Round "05"]
[TimeControl "180+2"]
[Date "2023.05.30"]
[WhiteClock "0:00:08"]
[BlackClock "0:00:11"]

1. e4 {[%clk 0:03:00]}  g6 {[%clk 0:02:55]} 2. h4 {[%clk 0:02:54]}  h5 {[%clk 0:02:55]} 3. Nc3 {[%clk 0:02:51]}  Bg7 {[%clk 0:02:55]} 4. d4 {[%clk 0:02:48]}  d6 {[%clk 0:02:56]} 5. Bg5 {[%clk 0:02:44]}  c6 {[%clk 0:02:52]} 6. Qd2 {[%clk 0:02:42]}  Nd7 {[%clk 0:02:49]} 7. O-O-O {[%clk 0:02:40]}  b5 {[%clk 0:02:49]} 8. e5 {[%clk 0:02:23]}  Qa5 {[%clk 0:02:34]} 9. Kb1 {[%clk 0:02:05]}  b4 {[%clk 0:02:31]} 10. Ne4 {[%clk 0:01:56]}  dxe5 {[%clk 0:02:24]} 11. Nf3 {[%clk 0:01:39]}  f5 {[%clk 0:01:53]} 12. dxe5 {[%clk 0:01:08]}  fxe4 {[%clk 0:01:51]} 13. e6 {[%clk 0:01:05]}  Nc5 {[%clk 0:01:30]} 14. Nd4 {[%clk 0:00:44]}  Nxe6 {[%clk 0:00:58]} 15. Nxc6 {[%clk 0:00:34]}  Qb6 {[%clk 0:00:50]} 16. Qd5 {[%clk 0:00:25]}  Nf6 {[%clk 0:00:30]} 17. Bxf6 {[%clk 0:00:21]}  Bxf6 {[%clk 0:00:31]} 18. Qxe4 {[%clk 0:00:20]}  O-O {[%clk 0:00:23]} 19. Qxg6+ {[%clk 0:00:18]}  Ng7 {[%clk 0:00:19]} 20. Bd3 {[%clk 0:00:14]}  Qxc6 {[%clk 0:00:14]} 21. Qh7+ {[%clk 0:00:13]}  Kf7 {[%clk 0:00:15]} 22. Bg6+ {[%clk 0:00:13]}  Ke6 {[%clk 0:00:16]} 23. Rhe1+ {[%clk 0:00:14]}  Be5 {[%clk 0:00:15]} 24. Qxg7 {[%clk 0:00:11]}  Qc5 {[%clk 0:00:11]} 25. Qxf8 {[%clk 0:00:08]}  Bb7 {[%clk 0:00:11]} 26. Qf7# {[%clk 0:00:08]} 1-0


[Site "https://www.chess.com"]

[Event "Titled Tuesday Blitz May 30 Early 2023"]
[White "Baches Garcia, Guillermo"]
[Black "Topalov, Aleksandar"]
[WhiteFideId "2209764"]
[BlackFideId "925659"]
[WhiteElo "2523"]
[BlackElo "2151"]
[Result "0-1"]
[Round "05"]
[TimeControl "180+2"]
[Date "2023.05.30"]
[WhiteClock "0:00:00"]
[BlackClock "0:00:29"]

1. e4 {[%clk 0:03:00]}  e6 {[%clk 0:02:56]} 2. d4 {[%clk 0:03:00]}  d5 {[%clk 0:02:56]} 3. exd5 {[%clk 0:03:01]}  exd5 {[%clk 0:02:55]} 4. Nf3 {[%clk 0:03:01]}  Bd6 {[%clk 0:02:53]} 5. c4 {[%clk 0:03:01]}  Nf6 {[%clk 0:02:52]} 6. Nc3 {[%clk 0:03:01]}  O-O {[%clk 0:02:51]} 7. cxd5 {[%clk 0:03:01]}  h6 {[%clk 0:02:49]} 8. Bc4 {[%clk 0:03:00]}  Re8+ {[%clk 0:02:47]} 9. Be3 {[%clk 0:02:59]}  Ng4 {[%clk 0:02:43]} 10. O-O {[%clk 0:02:56]}  Rxe3 {[%clk 0:02:38]} 11. fxe3 {[%clk 0:02:54]}  Nxe3 {[%clk 0:02:38]} 12. Qd2 {[%clk 0:02:50]}  Nxc4 {[%clk 0:02:32]} 13. Qd3 {[%clk 0:02:42]}  Nb6 {[%clk 0:02:31]} 14. Ne5 {[%clk 0:02:42]}  f6 {[%clk 0:02:11]} 15. Ng6 {[%clk 0:02:25]}  N8d7 {[%clk 0:02:01]} 16. Rae1 {[%clk 0:02:19]}  Nf8 {[%clk 0:01:59]} 17. Re3 {[%clk 0:02:10]}  Bd7 {[%clk 0:01:50]} 18. Rfe1 {[%clk 0:01:56]}  Nxg6 {[%clk 0:01:44]} 19. Qxg6 {[%clk 0:01:56]}  Qf8 {[%clk 0:01:44]} 20. a4 {[%clk 0:01:29]}  a5 {[%clk 0:01:39]} 21. Ne4 {[%clk 0:01:20]}  Nxd5 {[%clk 0:01:36]} 22. Rf3 {[%clk 0:01:17]}  Qf7 {[%clk 0:01:35]} 23. Qxf7+ {[%clk 0:00:26]}  Kxf7 {[%clk 0:01:35]} 24. b3 {[%clk 0:00:25]}  Bb4 {[%clk 0:01:29]} 25. Rc1 {[%clk 0:00:24]}  Bg4 {[%clk 0:01:15]} 26. Rf2 {[%clk 0:00:22]}  Be6 {[%clk 0:01:06]} 27. h3 {[%clk 0:00:20]}  c6 {[%clk 0:01:04]} 28. g4 {[%clk 0:00:18]}  Rd8 {[%clk 0:00:53]} 29. Nc5 {[%clk 0:00:18]}  Bc8 {[%clk 0:00:48]} 30. Nd3 {[%clk 0:00:17]}  Bd6 {[%clk 0:00:40]} 31. Ne5+ {[%clk 0:00:16]}  Kg8 {[%clk 0:00:35]} 32. Ng6 {[%clk 0:00:13]}  Be6 {[%clk 0:00:28]} 33. Re1 {[%clk 0:00:13]}  Bf7 {[%clk 0:00:29]} 34. Nh4 {[%clk 0:00:00]}  Bg3 {[%clk 0:00:29]} 0-1


[Site "https://www.chess.com"]

[Event "Titled Tuesday Blitz May 30 Early 2023"]
[White "Goldin, Roman"]
[Black "Bruedigam, Martin"]
[WhiteFideId "2803860"]
[BlackFideId "24608033"]
[WhiteElo "2312"]
[BlackElo "2331"]
[Result "0-1"]
[Round "05"]
[TimeControl "180+2"]
[Date "2023.05.30"]
[WhiteClock "0:00:00"]
[BlackClock "0:00:27"]

1. Nf3 {[%clk 0:02:58]}  d5 {[%clk 0:02:59]} 2. e3 {[%clk 0:02:56]}  Nf6 {[%clk 0:02:59]} 3. b4 {[%clk 0:02:56]}  Bg4 {[%clk 0:02:57]} 4. c4 {[%clk 0:02:54]}  e6 {[%clk 0:02:56]} 5. a3 {[%clk 0:02:54]}  Nbd7 {[%clk 0:02:54]} 6. Bb2 {[%clk 0:02:54]}  c6 {[%clk 0:02:53]} 7. d3 {[%clk 0:02:52]}  Bd6 {[%clk 0:02:53]} 8. Be2 {[%clk 0:02:49]}  O-O {[%clk 0:02:53]} 9. O-O {[%clk 0:02:48]}  Re8 {[%clk 0:02:53]} 10. Nbd2 {[%clk 0:02:39]}  a5 {[%clk 0:02:53]} 11. b5 {[%clk 0:02:30]}  cxb5 {[%clk 0:02:50]} 12. cxb5 {[%clk 0:02:28]}  a4 {[%clk 0:02:49]} 13. e4 {[%clk 0:02:22]}  Qb8 {[%clk 0:02:19]} 14. h3 {[%clk 0:02:20]}  Bh5 {[%clk 0:02:17]} 15. Re1 {[%clk 0:02:09]}  e5 {[%clk 0:02:08]} 16. exd5 {[%clk 0:01:55]}  Nxd5 {[%clk 0:02:09]} 17. Ng5 {[%clk 0:01:46]}  Bg6 {[%clk 0:02:04]} 18. Nc4 {[%clk 0:01:28]}  Be7 {[%clk 0:01:37]} 19. Ne4 {[%clk 0:01:09]}  f6 {[%clk 0:01:32]} 20. Bh5 {[%clk 0:01:04]}  Nf8 {[%clk 0:01:24]} 21. Bxg6 {[%clk 0:01:03]}  hxg6 {[%clk 0:01:25]} 22. d4 {[%clk 0:00:57]}  exd4 {[%clk 0:01:24]} 23. Qxd4 {[%clk 0:00:53]}  Nf4 {[%clk 0:01:22]} 24. Ned6 {[%clk 0:00:43]}  N4e6 {[%clk 0:01:05]} 25. Qd5 {[%clk 0:00:39]}  Bxd6 {[%clk 0:01:04]} 26. Nxd6 {[%clk 0:00:38]}  Re7 {[%clk 0:01:03]} 27. Rad1 {[%clk 0:00:31]}  Kh7 {[%clk 0:00:54]} 28. b6 {[%clk 0:00:29]}  Qd8 {[%clk 0:00:45]} 29. Qb5 {[%clk 0:00:14]}  Rd7 {[%clk 0:00:46]} 30. Nf7 {[%clk 0:00:05]}  Rxd1 {[%clk 0:00:45]} 31. Nxd8 {[%clk 0:00:05]}  Rxe1+ {[%clk 0:00:45]} 32. Kh2 {[%clk 0:00:06]}  Rxd8 {[%clk 0:00:46]} 33. Qxa4 {[%clk 0:00:05]}  Re2 {[%clk 0:00:38]} 34. Qh4+ {[%clk 0:00:04]}  Kg8 {[%clk 0:00:37]} 35. Bc3 {[%clk 0:00:04]}  Rd6 {[%clk 0:00:26]} 36. Bb4 {[%clk 0:00:02]}  Rxb6 {[%clk 0:00:26]} 37. Bxf8 {[%clk 0:00:02]}  Nxf8 {[%clk 0:00:26]} 38. Qc4+ {[%clk 0:00:00]}  Ree6 {[%clk 0:00:27]} 0-1


[Site "https://www.chess.com"]

[Event "Titled Tuesday Blitz May 30 Early 2023"]
[White "Llanos, Guillermo"]
[Black "Horak, Martin"]
[WhiteFideId "100358"]
[BlackFideId "367095"]
[WhiteElo "2225"]
[BlackElo "2091"]
[Result "0-1"]
[Round "05"]
[TimeControl "180+2"]
[Date "2023.05.30"]
[WhiteClock "0:00:20"]
[BlackClock "0:00:36"]

1. c4 {[%clk 0:03:00]}  e5 {[%clk 0:02:59]} 2. d3 {[%clk 0:02:59]}  Nf6 {[%clk 0:02:59]} 3. Nf3 {[%clk 0:02:57]}  Nc6 {[%clk 0:02:59]} 4. e3 {[%clk 0:02:55]}  Bb4+ {[%clk 0:02:56]} 5. Bd2 {[%clk 0:02:54]}  a5 {[%clk 0:02:50]} 6. Be2 {[%clk 0:02:53]}  O-O {[%clk 0:02:41]} 7. O-O {[%clk 0:02:53]}  e4 {[%clk 0:02:42]} 8. dxe4 {[%clk 0:02:45]}  Nxe4 {[%clk 0:02:43]} 9. Bxb4 {[%clk 0:02:33]}  axb4 {[%clk 0:02:42]} 10. Nbd2 {[%clk 0:02:31]}  Nc5 {[%clk 0:02:34]} 11. Nd4 {[%clk 0:02:25]}  d6 {[%clk 0:02:17]} 12. Nxc6 {[%clk 0:02:22]}  bxc6 {[%clk 0:02:18]} 13. Bf3 {[%clk 0:02:22]}  Bd7 {[%clk 0:02:08]} 14. Nb3 {[%clk 0:02:21]}  Na4 {[%clk 0:02:05]} 15. Qd2 {[%clk 0:02:17]}  Qf6 {[%clk 0:01:58]} 16. Nd4 {[%clk 0:02:05]}  Ra6 {[%clk 0:01:35]} 17. b3 {[%clk 0:01:56]}  c5 {[%clk 0:01:13]} 18. Nb5 {[%clk 0:01:42]}  Nc3 {[%clk 0:01:04]} 19. Nxc7 {[%clk 0:01:41]}  Ra7 {[%clk 0:01:01]} 20. Nd5 {[%clk 0:01:41]}  Qe5 {[%clk 0:00:58]} 21. Rfc1 {[%clk 0:01:27]}  Nxd5 {[%clk 0:00:52]} 22. Bxd5 {[%clk 0:01:21]}  Be6 {[%clk 0:00:49]} 23. Rd1 {[%clk 0:01:06]}  Rd8 {[%clk 0:00:43]} 24. Rac1 {[%clk 0:01:03]}  Bxd5 {[%clk 0:00:42]} 25. cxd5 {[%clk 0:00:58]}  Rda8 {[%clk 0:00:42]} 26. Rc2 {[%clk 0:00:58]}  g6 {[%clk 0:00:42]} 27. f3 {[%clk 0:00:53]}  h5 {[%clk 0:00:42]} 28. e4 {[%clk 0:00:53]}  Kg7 {[%clk 0:00:42]} 29. Qe2 {[%clk 0:00:50]}  f5 {[%clk 0:00:38]} 30. exf5 {[%clk 0:00:34]}  Qxe2 {[%clk 0:00:37]} 31. Rxe2 {[%clk 0:00:34]}  Rxa2 {[%clk 0:00:37]} 32. Re7+ {[%clk 0:00:27]}  Kf6 {[%clk 0:00:37]} 33. fxg6 {[%clk 0:00:20]}  Kxe7 {[%clk 0:00:36]} 0-1


[Site "https://www.chess.com"]

[Event "Titled Tuesday Blitz May 30 Early 2023"]
[White "Ginzburg, Yakov"]
[Black "KVAIDAN"]
[WhiteFideId "4157176"]
[WhiteElo "2305"]
[BlackElo "2323"]
[Result "1-0"]
[Round "05"]
[TimeControl "180+2"]
[Date "2023.05.30"]
[WhiteClock "0:01:12"]
[BlackClock "0:02:13"]

1. e4 {[%clk 0:02:59]}  e5 {[%clk 0:03:00]} 2. Nf3 {[%clk 0:02:59]}  d5 {[%clk 0:03:00]} 3. d4 {[%clk 0:02:57]}  dxe4 {[%clk 0:02:59]} 4. Nxe5 {[%clk 0:02:57]}  Bd6 {[%clk 0:03:00]} 5. Bf4 {[%clk 0:02:56]}  c5 {[%clk 0:02:53]} 6. dxc5 {[%clk 0:02:53]}  Qa5+ {[%clk 0:02:52]} 7. Nc3 {[%clk 0:02:44]}  Qxc5 {[%clk 0:02:47]} 8. Bb5+ {[%clk 0:02:36]}  Ke7 {[%clk 0:02:34]} 9. Nxe4 {[%clk 0:01:17]}  Qb4+ {[%clk 0:02:21]} 10. Nc3 {[%clk 0:01:17]}  Qxf4 {[%clk 0:02:20]} 11. Nd5+ {[%clk 0:01:17]}  Ke6 {[%clk 0:02:18]} 12. Nxf4+ {[%clk 0:01:17]}  Kxe5 {[%clk 0:02:18]} 13. Qd5+ {[%clk 0:01:12]}  Kxf4 {[%clk 0:02:16]} 14. g3+ {[%clk 0:01:11]}  Kg4 {[%clk 0:02:13]} 15. h3# {[%clk 0:01:12]} 1-0


[Site "https://www.chess.com"]

[Event "Titled Tuesday Blitz May 30 Early 2023"]
[White "surrenderPLS"]
[Black "rikchessmx"]
[WhiteElo "2511"]
[BlackElo "2306"]
[Result "1/2-1/2"]
[Round "05"]
[TimeControl "180+2"]
[Date "2023.05.30"]
[WhiteClock "0:00:48"]
[BlackClock "0:02:17"]

1. e4 {[%clk 0:01:04]}  e5 {[%clk 0:02:55]} 2. Nf3 {[%clk 0:01:04]}  Nc6 {[%clk 0:02:55]} 3. Nc3 {[%clk 0:01:04]}  d6 {[%clk 0:02:54]} 4. d4 {[%clk 0:01:04]}  exd4 {[%clk 0:02:54]} 5. Nxd4 {[%clk 0:01:05]}  Nf6 {[%clk 0:02:54]} 6. Be2 {[%clk 0:01:04]}  Be7 {[%clk 0:02:54]} 7. O-O {[%clk 0:01:04]}  O-O {[%clk 0:02:54]} 8. Be3 {[%clk 0:01:04]}  Re8 {[%clk 0:02:52]} 9. Re1 {[%clk 0:01:03]}  Bf8 {[%clk 0:02:52]} 10. f3 {[%clk 0:01:03]}  d5 {[%clk 0:02:52]} 11. exd5 {[%clk 0:00:57]}  Nxd5 {[%clk 0:02:43]} 12. Nxd5 {[%clk 0:00:56]}  Qxd5 {[%clk 0:02:40]} 13. Bf2 {[%clk 0:00:53]}  Nxd4 {[%clk 0:02:33]} 14. Qxd4 {[%clk 0:00:53]}  Qxd4 {[%clk 0:02:31]} 15. Bxd4 {[%clk 0:00:54]}  Be6 {[%clk 0:02:17]} 16. Bd3 {[%clk 0:00:48]} 1/2-1/2


[Site "https://www.chess.com"]

[Event "Titled Tuesday Blitz May 30 Early 2023"]
[White "Rodriguez Santiago, Jaime"]
[Black "Ljukin, Sergei"]
[WhiteFideId "3100898"]
[BlackFideId "14102200"]
[WhiteElo "2025"]
[BlackElo "2312"]
[Result "1-0"]
[Round "05"]
[TimeControl "180+2"]
[Date "2023.05.30"]
[WhiteClock "0:00:19"]
[BlackClock "0:00:00"]

1. d4 {[%clk 0:03:00]}  d5 {[%clk 0:02:43]} 2. c4 {[%clk 0:02:59]}  c6 {[%clk 0:02:43]} 3. cxd5 {[%clk 0:02:57]}  cxd5 {[%clk 0:02:42]} 4. Bf4 {[%clk 0:02:56]}  Nf6 {[%clk 0:02:43]} 5. e3 {[%clk 0:02:54]}  Nc6 {[%clk 0:02:43]} 6. Nc3 {[%clk 0:02:49]}  Bf5 {[%clk 0:02:43]} 7. Qb3 {[%clk 0:02:45]}  Na5 {[%clk 0:02:43]} 8. Qa4+ {[%clk 0:02:43]}  Bd7 {[%clk 0:02:43]} 9. Qc2 {[%clk 0:02:42]}  e6 {[%clk 0:02:41]} 10. Bd3 {[%clk 0:02:40]}  Nc6 {[%clk 0:02:41]} 11. a3 {[%clk 0:02:36]}  Nh5 {[%clk 0:02:40]} 12. Bg3 {[%clk 0:02:20]}  f5 {[%clk 0:02:33]} 13. Nf3 {[%clk 0:02:02]}  a6 {[%clk 0:02:02]} 14. Qe2 {[%clk 0:01:59]}  g6 {[%clk 0:01:56]} 15. Rc1 {[%clk 0:01:55]}  Nxg3 {[%clk 0:01:50]} 16. hxg3 {[%clk 0:01:53]}  Bd6 {[%clk 0:01:49]} 17. b4 {[%clk 0:01:30]}  O-O {[%clk 0:01:35]} 18. Qb2 {[%clk 0:01:19]}  Qf6 {[%clk 0:01:09]} 19. Kd2 {[%clk 0:01:09]}  Qe7 {[%clk 0:00:52]} 20. Rh6 {[%clk 0:01:02]}  a5 {[%clk 0:00:47]} 21. Rch1 {[%clk 0:00:56]}  axb4 {[%clk 0:00:39]} 22. axb4 {[%clk 0:00:50]}  Rf7 {[%clk 0:00:18]} 23. b5 {[%clk 0:00:37]}  Na5 {[%clk 0:00:17]} 24. Ke2 {[%clk 0:00:27]}  Qe8 {[%clk 0:00:11]} 25. Ng5 {[%clk 0:00:25]}  Bf8 {[%clk 0:00:05]} 26. Rxh7 {[%clk 0:00:24]}  Rxh7 {[%clk 0:00:04]} 27. Rxh7 {[%clk 0:00:25]}  Bg7 {[%clk 0:00:04]} 28. Qb1 {[%clk 0:00:20]}  Nc4 {[%clk 0:00:03]} 29. Qh1 {[%clk 0:00:19]}  Ra3 {[%clk 0:00:00]} 30. Rxg7+ {[%clk 0:00:19]} 1-0


[Site "https://www.chess.com"]

[Event "Titled Tuesday Blitz May 30 Early 2023"]
[White "Zheenbekov, Nurgazy"]
[Black "mohsengabr2002"]
[WhiteFideId "13800485"]
[WhiteElo "1975"]
[BlackElo "2257"]
[Result "1-0"]
[Round "05"]
[TimeControl "180+2"]
[Date "2023.05.30"]
[WhiteClock "0:01:31"]
[BlackClock "0:00:57"]

1. b3 {[%clk 0:02:59]}  f6 {[%clk 0:02:14]} 2. d4 {[%clk 0:02:57]}  g6 {[%clk 0:02:15]} 3. Nf3 {[%clk 0:02:56]}  e6 {[%clk 0:02:15]} 4. g3 {[%clk 0:02:56]}  Nh6 {[%clk 0:02:16]} 5. Bg2 {[%clk 0:02:55]}  Nf7 {[%clk 0:02:17]} 6. O-O {[%clk 0:02:55]}  Bg7 {[%clk 0:02:18]} 7. c4 {[%clk 0:02:54]}  O-O {[%clk 0:02:19]} 8. Bb2 {[%clk 0:02:54]}  d6 {[%clk 0:02:20]} 9. e4 {[%clk 0:02:49]}  c6 {[%clk 0:02:20]} 10. Nc3 {[%clk 0:02:49]}  Na6 {[%clk 0:02:20]} 11. Re1 {[%clk 0:02:44]}  e5 {[%clk 0:02:19]} 12. h3 {[%clk 0:02:34]}  Be6 {[%clk 0:02:16]} 13. a3 {[%clk 0:02:33]}  Qe7 {[%clk 0:02:12]} 14. d5 {[%clk 0:02:31]}  Bd7 {[%clk 0:02:10]} 15. b4 {[%clk 0:02:31]}  c5 {[%clk 0:02:09]} 16. Qb3 {[%clk 0:02:14]}  b6 {[%clk 0:02:07]} 17. Nb5 {[%clk 0:02:14]}  Rfc8 {[%clk 0:02:02]} 18. Rac1 {[%clk 0:02:07]}  Bh6 {[%clk 0:02:02]} 19. Rcd1 {[%clk 0:02:06]}  f5 {[%clk 0:02:01]} 20. exf5 {[%clk 0:02:02]}  Bxf5 {[%clk 0:01:54]} 21. Nxd6 {[%clk 0:01:58]}  Qxd6 {[%clk 0:01:50]} 22. Nxe5 {[%clk 0:01:57]}  cxb4 {[%clk 0:01:43]} 23. Nxf7 {[%clk 0:01:53]}  Kxf7 {[%clk 0:01:42]} 24. Be5 {[%clk 0:01:47]}  Qc5 {[%clk 0:01:30]} 25. d6 {[%clk 0:01:47]}  bxa3 {[%clk 0:01:25]} 26. Bd5+ {[%clk 0:01:44]}  Kf8 {[%clk 0:01:19]} 27. g4 {[%clk 0:01:34]}  Bd7 {[%clk 0:01:14]} 28. Qf3+ {[%clk 0:01:32]}  Bf5 {[%clk 0:00:57]} 29. gxf5 {[%clk 0:01:31]} 1-0


[Site "https://www.chess.com"]

[Event "Titled Tuesday Blitz May 30 Early 2023"]
[White "Filgueira, Hernan"]
[Black "Andrew_Ledger"]
[WhiteFideId "101770"]
[WhiteElo "2363"]
[BlackElo "2198"]
[Result "1-0"]
[Round "05"]
[TimeControl "180+2"]
[Date "2023.05.30"]
[WhiteClock "0:00:28"]
[BlackClock "0:00:05"]

1. c4 {[%clk 0:03:00]}  e5 {[%clk 0:02:57]} 2. Nc3 {[%clk 0:02:59]}  Bb4 {[%clk 0:02:57]} 3. Nf3 {[%clk 0:02:56]}  Bxc3 {[%clk 0:02:57]} 4. bxc3 {[%clk 0:02:56]}  Nc6 {[%clk 0:02:57]} 5. d4 {[%clk 0:02:55]}  d6 {[%clk 0:02:57]} 6. g3 {[%clk 0:02:52]}  Nge7 {[%clk 0:02:56]} 7. Bg2 {[%clk 0:02:52]}  O-O {[%clk 0:02:56]} 8. O-O {[%clk 0:02:53]}  h6 {[%clk 0:02:54]} 9. Ba3 {[%clk 0:02:52]}  Ng6 {[%clk 0:02:37]} 10. c5 {[%clk 0:02:51]}  dxc5 {[%clk 0:02:19]} 11. Bxc5 {[%clk 0:02:49]}  Re8 {[%clk 0:02:19]} 12. e3 {[%clk 0:02:46]}  Rb8 {[%clk 0:02:02]} 13. Nd2 {[%clk 0:02:44]}  a6 {[%clk 0:01:49]} 14. d5 {[%clk 0:02:37]}  Na5 {[%clk 0:01:45]} 15. e4 {[%clk 0:02:34]}  Bd7 {[%clk 0:01:38]} 16. Bb4 {[%clk 0:02:26]}  c6 {[%clk 0:01:31]} 17. c4 {[%clk 0:01:58]}  cxd5 {[%clk 0:01:15]} 18. exd5 {[%clk 0:01:57]}  f5 {[%clk 0:01:11]} 19. Bd6 {[%clk 0:01:41]}  Rc8 {[%clk 0:01:10]} 20. c5 {[%clk 0:01:40]}  Bb5 {[%clk 0:01:06]} 21. Re1 {[%clk 0:01:40]}  e4 {[%clk 0:01:06]} 22. Rc1 {[%clk 0:01:25]}  Ne5 {[%clk 0:01:05]} 23. a4 {[%clk 0:01:22]}  Bd3 {[%clk 0:00:57]} 24. Nxe4 {[%clk 0:01:11]}  fxe4 {[%clk 0:00:52]} 25. Bxe4 {[%clk 0:01:10]}  Bxe4 {[%clk 0:00:49]} 26. Rxe4 {[%clk 0:01:10]}  Nf7 {[%clk 0:00:40]} 27. Rxe8+ {[%clk 0:01:06]}  Qxe8 {[%clk 0:00:40]} 28. Bf4 {[%clk 0:01:07]}  Qe4 {[%clk 0:00:38]} 29. f3 {[%clk 0:00:58]}  Qb4 {[%clk 0:00:31]} 30. c6 {[%clk 0:00:53]}  bxc6 {[%clk 0:00:27]} 31. d6 {[%clk 0:00:53]}  Rd8 {[%clk 0:00:20]} 32. d7 {[%clk 0:00:36]}  Qb6+ {[%clk 0:00:19]} 33. Kg2 {[%clk 0:00:36]}  c5 {[%clk 0:00:19]} 34. Qd5 {[%clk 0:00:31]}  Nc6 {[%clk 0:00:19]} 35. Re1 {[%clk 0:00:29]}  Nb4 {[%clk 0:00:05]} 36. Re8+ {[%clk 0:00:28]} 1-0


[Site "https://www.chess.com"]